[Event "*** Titled Tuesday Blitz"]
[Site "Chess.com"]
[Date "2019.09.03"]
[Round "10"]
[White "boasovietica"]
[Black "temus_galaktionov"]
[Result "0-1"]
[WhiteElo "2437"]
[BlackElo "2592"]
[TimeControl "180+2"]
[EndTime "17:18:38 PDT"]
[Termination "temus_galaktionov won by resignation"]

1. e4 {[%clk 0:03:01.9]} 1... c6 {[%clk 0:03:01.9]} 2. Nf3 {[%clk 0:03:02.1]}
2... g6 {[%clk 0:03:03.8]} 3. d4 {[%clk 0:02:59.3]} 3... Bg7 {[%clk 0:03:05.7]}
4. Nc3 {[%clk 0:02:59.4]} 4... d6 {[%clk 0:03:06.5]} 5. h3 {[%clk 0:02:59.4]}
5... Nd7 {[%clk 0:03:07.2]} 6. Be3 {[%clk 0:02:59.7]} 6... e5 {[%clk 0:03:06.5]}
7. Qd2 {[%clk 0:02:57.9]} 7... Ngf6 {[%clk 0:03:06.3]} 8. Be2 {[%clk 0:02:44.1]}
8... O-O {[%clk 0:03:06]} 9. O-O {[%clk 0:02:44.7]} 9... Qe7 {[%clk 0:03:05.1]}
10. dxe5 {[%clk 0:02:37.4]} 10... dxe5 {[%clk 0:03:04.4]} 11. Rfd1 {[%clk
0:02:31.9]} 11... Nc5 {[%clk 0:03:03.5]} 12. Bxc5 {[%clk 0:02:11.4]} 12... Qxc5
{[%clk 0:03:05.4]} 13. Qd6 {[%clk 0:02:05.9]} 13... Qxd6 {[%clk 0:03:01.4]} 14.
Rxd6 {[%clk 0:02:06]} 14... Re8 {[%clk 0:03:03.3]} 15. Bc4 {[%clk 0:01:59.5]}
15... h6 {[%clk 0:03:01.8]} 16. a4 {[%clk 0:01:58.9]} 16... Nd7 {[%clk
0:02:57.8]} 17. Rad1 {[%clk 0:01:52.4]} 17... Nf8 {[%clk 0:02:57.6]} 18. Rd8
{[%clk 0:01:28.2]} 18... Be6 {[%clk 0:02:57.1]} 19. Rxa8 {[%clk 0:01:28]} 19...
Rxa8 {[%clk 0:02:53.7]} 20. Bxe6 {[%clk 0:01:28.5]} 20... Nxe6 {[%clk 0:02:55]}
21. Rd7 {[%clk 0:01:28.9]} 21... Rb8 {[%clk 0:02:55.5]} 22. Nd1 {[%clk
0:01:01.2]} 22... Kf8 {[%clk 0:02:54.5]} 23. a5 {[%clk 0:00:51.1]} 23... Nc5
{[%clk 0:02:48.9]} 24. Rc7 {[%clk 0:00:46.1]} 24... Bf6 {[%clk 0:02:44.1]} 25.
a6 {[%clk 0:00:23.2]} 25... Bd8 {[%clk 0:02:42.3]} 26. Rxb7 {[%clk 0:00:17.7]}
26... Nxb7 {[%clk 0:02:42.7]} 27. axb7 {[%clk 0:00:18.9]} 27... Bc7 {[%clk
0:02:41]} 28. Nd2 {[%clk 0:00:15.1]} 28... Rxb7 {[%clk 0:02:41.5]} 29. Nc4
{[%clk 0:00:15.9]} 29... Ke7 {[%clk 0:02:41.9]} 30. Kf1 {[%clk 0:00:16.6]} 30...
a5 {[%clk 0:02:41.3]} 31. b3 {[%clk 0:00:13.2]} 31... f6 {[%clk 0:02:34.7]} 32.
Nc3 {[%clk 0:00:13.5]} 32... Ra7 {[%clk 0:02:30.9]} 33. Ke2 {[%clk 0:00:14]}
33... Bd6 {[%clk 0:02:30.7]} 34. Na4 {[%clk 0:00:13.5]} 34... Kd7 {[%clk
0:02:24.8]} 35. Kd3 {[%clk 0:00:14.2]} 35... Kc7 {[%clk 0:02:25.9]} 36. f3
{[%clk 0:00:12.6]} 36... Ra8 {[%clk 0:02:23.2]} 37. Ke2 {[%clk 0:00:12.7]} 37...
Bb4 {[%clk 0:02:22.7]} 38. Kd3 {[%clk 0:00:12.6]} 38... Kb7 {[%clk 0:02:19.4]}
39. Ke2 {[%clk 0:00:12.5]} 39... Ka6 {[%clk 0:02:20.1]} 40. Kd3 {[%clk
0:00:12.3]} 40... Rd8+ {[%clk 0:02:20.4]} 41. Ke2 {[%clk 0:00:13.3]} 41... Kb5
{[%clk 0:02:20.7]} 42. c3 {[%clk 0:00:12.1]} 42... Bc5 {[%clk 0:02:20.1]} 43.
Nab2 {[%clk 0:00:11.9]} 43... Be7 {[%clk 0:02:17.6]} 44. Na4 {[%clk 0:00:09.2]}
44... h5 {[%clk 0:02:14.9]} 45. g3 {[%clk 0:00:07]} 45... Bf8 {[%clk 0:02:15.7]}
46. Nab2 {[%clk 0:00:06.9]} 46... Bh6 {[%clk 0:02:14.7]} 47. Na3+ {[%clk
0:00:07.5]} 47... Ka6 {[%clk 0:02:14.3]} 48. Nc2 {[%clk 0:00:04.2]} 48... Rd2+
{[%clk 0:02:12.1]} 0-1

[Event "*** Titled Tuesday Blitz"]
[Site "Chess.com"]
[Date "2019.09.03"]
[Round "10"]
[White "daro94"]
[Black "YQPerez"]
[Result "0-1"]
[WhiteElo "2889"]
[BlackElo "2817"]
[TimeControl "180+2"]
[EndTime "17:18:40 PDT"]
[Termination "YQPerez won by checkmate"]

1. d4 {[%clk 0:02:48.2]} 1... d5 {[%clk 0:02:59.5]} 2. c4 {[%clk 0:02:48.5]}
2... dxc4 {[%clk 0:02:59.3]} 3. Nf3 {[%clk 0:02:49.6]} 3... Nf6 {[%clk
0:02:59.8]} 4. e3 {[%clk 0:02:51.1]} 4... a6 {[%clk 0:03:00]} 5. Bxc4 {[%clk
0:02:51.2]} 5... e6 {[%clk 0:02:55.2]} 6. O-O {[%clk 0:02:51.7]} 6... b5 {[%clk
0:02:56.1]} 7. Bd3 {[%clk 0:02:46.7]} 7... Bb7 {[%clk 0:02:53.6]} 8. a4 {[%clk
0:02:46]} 8... b4 {[%clk 0:02:53.3]} 9. b3 {[%clk 0:02:30]} 9... Nbd7 {[%clk
0:02:46.6]} 10. Bb2 {[%clk 0:02:30.3]} 10... c5 {[%clk 0:02:45.6]} 11. Nbd2
{[%clk 0:02:31.4]} 11... Be7 {[%clk 0:02:40.6]} 12. Qe2 {[%clk 0:02:32.4]} 12...
cxd4 {[%clk 0:02:37.1]} 13. Bxd4 {[%clk 0:02:31.3]} 13... O-O {[%clk 0:02:34.6]}
14. Rac1 {[%clk 0:02:31.3]} 14... Nd5 {[%clk 0:02:31.3]} 15. Nc4 {[%clk
0:01:51.9]} 15... Nc5 {[%clk 0:02:23.4]} 16. Bc2 {[%clk 0:01:37.9]} 16... Nc3
{[%clk 0:02:15.6]} 17. Bxc3 {[%clk 0:01:38.9]} 17... bxc3 {[%clk 0:02:16.5]} 18.
Rfd1 {[%clk 0:01:35.6]} 18... Qc7 {[%clk 0:02:14.2]} 19. b4 {[%clk 0:01:31]}
19... Nd7 {[%clk 0:02:05]} 20. Bxh7+ {[%clk 0:01:06.2]} 20... Kxh7 {[%clk
0:02:03.4]} 21. Qd3+ {[%clk 0:01:07.6]} 21... Kg8 {[%clk 0:02:00.2]} 22. Qxd7
{[%clk 0:01:08.8]} 22... Rac8 {[%clk 0:01:49.2]} 23. Qxc7 {[%clk 0:00:21.9]}
23... Rxc7 {[%clk 0:01:51.1]} 24. Na3 {[%clk 0:00:16.3]} 24... Bxb4 {[%clk
0:01:47.9]} 25. Nc2 {[%clk 0:00:17.4]} 25... Ba5 {[%clk 0:01:40]} 26. Ne5 {[%clk
0:00:15.8]} 26... Bd5 {[%clk 0:01:38.5]} 27. f3 {[%clk 0:00:10.9]} 27... Rb8
{[%clk 0:01:32.3]} 28. Nd4 {[%clk 0:00:08.5]} 28... Rb2 {[%clk 0:01:27.6]} 29.
e4 {[%clk 0:00:07.3]} 29... Ba2 {[%clk 0:01:17.6]} 30. Nd3 {[%clk 0:00:06]}
30... Rd2 {[%clk 0:01:11.9]} 31. Ne1 {[%clk 0:00:04.6]} 31... Bb6 {[%clk
0:01:06.8]} 32. Nc2 {[%clk 0:00:04.4]} 32... Bb3 {[%clk 0:01:05.1]} 33. Kf1
{[%clk 0:00:04.7]} 33... Bxd4 {[%clk 0:01:01.5]} 34. Ke1 {[%clk 0:00:03]} 34...
Bf2+ {[%clk 0:00:59.4]} 35. Kf1 {[%clk 0:00:04.2]} 35... Bc4# {[%clk 0:00:59.8]}
0-1

[Event "*** Titled Tuesday Blitz"]
[Site "Chess.com"]
[Date "2019.09.03"]
[Round "10"]
[White "Caisachess"]
[Black "adriangschnitzer"]
[Result "1-0"]
[WhiteElo "2302"]
[BlackElo "2501"]
[TimeControl "180+2"]
[EndTime "17:18:51 PDT"]
[Termination "Caisachess won by resignation"]

1. e4 {[%clk 0:03:01.9]} 1... c6 {[%clk 0:02:58.7]} 2. d4 {[%clk 0:03:02]} 2...
d5 {[%clk 0:03:00.6]} 3. exd5 {[%clk 0:02:59.2]} 3... cxd5 {[%clk 0:03:01.2]} 4.
Bd3 {[%clk 0:03:00.7]} 4... Nc6 {[%clk 0:03:01.1]} 5. c3 {[%clk 0:02:59.2]} 5...
g6 {[%clk 0:03:00.2]} 6. h3 {[%clk 0:03:00.4]} 6... Bg7 {[%clk 0:03:00.1]} 7.
Nf3 {[%clk 0:03:01.9]} 7... Bf5 {[%clk 0:02:59.5]} 8. O-O {[%clk 0:02:59.8]}
8... e6 {[%clk 0:03:00.7]} 9. Na3 {[%clk 0:02:54.6]} 9... Nf6 {[%clk 0:03:01.1]}
10. Nc2 {[%clk 0:02:54.5]} 10... O-O {[%clk 0:03:01.8]} 11. Bg5 {[%clk
0:02:55.7]} 11... h6 {[%clk 0:03:02.1]} 12. Bf4 {[%clk 0:02:55.6]} 12... g5
{[%clk 0:03:02.8]} 13. Bh2 {[%clk 0:02:55.7]} 13... Ne4 {[%clk 0:03:01.1]} 14.
Re1 {[%clk 0:02:51.5]} 14... Bg6 {[%clk 0:02:54]} 15. Ne5 {[%clk 0:02:48.9]}
15... Nxe5 {[%clk 0:02:53.7]} 16. dxe5 {[%clk 0:02:49.6]} 16... f5 {[%clk
0:02:53.6]} 17. exf6 {[%clk 0:02:50.1]} 17... Qxf6 {[%clk 0:02:54.1]} 18. f3
{[%clk 0:02:36.1]} 18... Nc5 {[%clk 0:02:51.8]} 19. Be5 {[%clk 0:02:32.5]} 19...
Nxd3 {[%clk 0:02:44.5]} 20. Bxf6 {[%clk 0:02:32.4]} 20... Rxf6 {[%clk
0:02:46.4]} 21. Re2 {[%clk 0:01:57.9]} 21... Nxb2 {[%clk 0:02:42.1]} 22. Qb1
{[%clk 0:01:59]} 22... Nc4 {[%clk 0:02:41.4]} 23. Qxb7 {[%clk 0:01:59.3]} 23...
Raf8 {[%clk 0:02:41.7]} 24. Nd4 {[%clk 0:01:55]} 24... R6f7 {[%clk 0:02:37.3]}
25. Qa6 {[%clk 0:01:50.1]} 25... Bd3 {[%clk 0:02:35.6]} 26. Rxe6 {[%clk
0:01:39.4]} 26... Ne5 {[%clk 0:02:33.1]} 27. Qa5 {[%clk 0:01:26.1]} 27... Bc4
{[%clk 0:02:25.7]} 28. Re1 {[%clk 0:01:22.3]} 28... Nd3 {[%clk 0:02:23.4]} 29.
R1e3 {[%clk 0:01:18.1]} 29... h5 {[%clk 0:02:19.7]} 30. Re8 {[%clk 0:01:14.8]}
30... g4 {[%clk 0:02:16.2]} 31. Rxf8+ {[%clk 0:01:14.6]} 31... Bxf8 {[%clk
0:02:12.9]} 32. hxg4 {[%clk 0:01:11.1]} 32... hxg4 {[%clk 0:02:10.9]} 33. Qd8
{[%clk 0:01:04.9]} 33... g3 {[%clk 0:02:04.5]} 34. Ne6 {[%clk 0:00:57]} 34...
Nc1 {[%clk 0:01:45.3]} 35. Qg5+ {[%clk 0:00:53.9]} 35... Bg7 {[%clk 0:01:37.1]}
36. Nxg7 {[%clk 0:00:50.7]} 36... Ne2+ {[%clk 0:01:37.5]} 37. Rxe2 {[%clk
0:00:39.9]} 37... Bxe2 {[%clk 0:01:37]} 38. Nf5+ {[%clk 0:00:36.9]} 38... Kh7
{[%clk 0:01:34.9]} 39. Qh6+ {[%clk 0:00:37]} 39... Kg8 {[%clk 0:01:35.6]} 40.
Qg6+ {[%clk 0:00:37.6]} 40... Kf8 {[%clk 0:01:36.5]} 41. Nd6 {[%clk 0:00:30.8]}
41... Rf6 {[%clk 0:01:25]} 42. Qxf6+ {[%clk 0:00:31]} 1-0

[Event "*** Titled Tuesday Blitz"]
[Site "Chess.com"]
[Date "2019.09.03"]
[Round "10"]
[White "goofypenguin96"]
[Black "TomPolgar"]
[Result "1-0"]
[WhiteElo "2280"]
[BlackElo "2304"]
[TimeControl "180+2"]
[EndTime "17:19:06 PDT"]
[Termination "goofypenguin96 won on time"]

1. e4 {[%clk 0:03:01.9]} 1... c5 {[%clk 0:02:59]} 2. Nf3 {[%clk 0:03:01.6]} 2...
Nc6 {[%clk 0:03:00.4]} 3. d4 {[%clk 0:03:02.3]} 3... cxd4 {[%clk 0:03:02.3]} 4.
Nxd4 {[%clk 0:03:03.9]} 4... g6 {[%clk 0:03:03.9]} 5. Nc3 {[%clk 0:03:01.7]}
5... Bg7 {[%clk 0:03:05.4]} 6. Be3 {[%clk 0:03:02.2]} 6... Nf6 {[%clk
0:03:06.8]} 7. Bc4 {[%clk 0:03:03.4]} 7... O-O {[%clk 0:03:08.4]} 8. Bb3 {[%clk
0:03:01.7]} 8... a5 {[%clk 0:03:09.6]} 9. O-O {[%clk 0:02:59.2]} 9... Nxd4
{[%clk 0:03:08.5]} 10. Bxd4 {[%clk 0:02:58.9]} 10... d6 {[%clk 0:03:09.8]} 11.
Re1 {[%clk 0:02:53.8]} 11... Bd7 {[%clk 0:03:04.8]} 12. a4 {[%clk 0:02:54]}
12... Bc6 {[%clk 0:03:02.4]} 13. Nd5 {[%clk 0:02:54]} 13... Nd7 {[%clk 0:02:41]}
14. Bxg7 {[%clk 0:02:47.7]} 14... Kxg7 {[%clk 0:02:42.9]} 15. Qd4+ {[%clk
0:02:48.9]} 15... Kg8 {[%clk 0:02:44.3]} 16. Rad1 {[%clk 0:02:45.4]} 16... Nc5
{[%clk 0:01:55.5]} 17. e5 {[%clk 0:02:45.5]} 17... Nxb3 {[%clk 0:01:55.3]} 18.
cxb3 {[%clk 0:02:46]} 18... dxe5 {[%clk 0:01:32.1]} 19. Qxe5 {[%clk 0:02:46.6]}
19... Bxd5 {[%clk 0:01:31.1]} 20. Rxd5 {[%clk 0:02:46.6]} 20... Qb6 {[%clk
0:01:26.5]} 21. Rb5 {[%clk 0:02:43]} 21... Qc6 {[%clk 0:01:24.3]} 22. Rxa5
{[%clk 0:02:37.3]} 22... Rxa5 {[%clk 0:01:09.8]} 23. Qxa5 {[%clk 0:02:39.2]}
23... e6 {[%clk 0:00:44]} 24. h3 {[%clk 0:02:35.9]} 24... Rc8 {[%clk 0:00:43.8]}
25. Qe5 {[%clk 0:02:32]} 25... Qc2 {[%clk 0:00:34.7]} 26. Re3 {[%clk 0:02:32.2]}
26... Qc1+ {[%clk 0:00:28.8]} 27. Kh2 {[%clk 0:02:31.3]} 27... Qd1 {[%clk
0:00:25.8]} 28. Rc3 {[%clk 0:02:13.6]} 28... Rd8 {[%clk 0:00:21.8]} 29. Qf4
{[%clk 0:02:09.1]} 29... Qd5 {[%clk 0:00:16.4]} 30. Rc7 {[%clk 0:02:07.6]} 30...
e5 {[%clk 0:00:17.6]} 31. Qf3 {[%clk 0:02:02]} 31... e4 {[%clk 0:00:11.7]} 32.
Qf6 {[%clk 0:02:02.1]} 32... Rf8 {[%clk 0:00:09.2]} 33. b4 {[%clk 0:01:57.1]}
33... Qb3 {[%clk 0:00:06.7]} 34. Rxb7 {[%clk 0:01:50.6]} 34... Qxa4 {[%clk
0:00:07.7]} 35. b5 {[%clk 0:01:50.9]} 35... Qb4 {[%clk 0:00:03.7]} 36. b6 {[%clk
0:01:50.7]} 36... e3 {[%clk 0:00:03.8]} 37. fxe3 {[%clk 0:01:50.5]} 37... Qb3
{[%clk 0:00:03.2]} 38. Re7 {[%clk 0:01:50.3]} 38... Rb8 {[%clk 0:00:03.9]} 39.
b7 {[%clk 0:01:48.9]} 39... Qb4 {[%clk 0:00:02.6]} 40. Qe5 {[%clk 0:01:46.3]}
40... Rf8 {[%clk 0:00:02.1]} 41. Rc7 {[%clk 0:01:35.6]} 41... Qb6 {[%clk
0:00:02.5]} 42. Qe7 {[%clk 0:01:30.5]} 42... Qb5 {[%clk 0:00:02.7]} 43. Rc8
{[%clk 0:01:30.1]} 1-0

[Event "*** Titled Tuesday Blitz"]
[Site "Chess.com"]
[Date "2019.09.03"]
[Round "10"]
[White "hansen"]
[Black "jlucasvf"]
[Result "1-0"]
[WhiteElo "2884"]
[BlackElo "2709"]
[TimeControl "180+2"]
[EndTime "17:19:14 PDT"]
[Termination "hansen won by checkmate"]

1. e4 {[%clk 0:02:56.1]} 1... e5 {[%clk 0:03:00.9]} 2. Nf3 {[%clk 0:02:55.9]}
2... Nf6 {[%clk 0:03:02.2]} 3. Nxe5 {[%clk 0:02:56.3]} 3... Nc6 {[%clk
0:03:03.3]} 4. d4 {[%clk 0:02:35.5]} 4... Nxe4 {[%clk 0:02:44.9]} 5. Bd3 {[%clk
0:02:34.2]} 5... d5 {[%clk 0:02:44.2]} 6. O-O {[%clk 0:02:30.3]} 6... Nxe5
{[%clk 0:02:45.4]} 7. dxe5 {[%clk 0:02:31.1]} 7... Bc5 {[%clk 0:02:43.4]} 8.
Bxe4 {[%clk 0:02:07]} 8... dxe4 {[%clk 0:02:43.5]} 9. Qxd8+ {[%clk 0:02:08.9]}
9... Kxd8 {[%clk 0:02:45.2]} 10. Nc3 {[%clk 0:02:10.5]} 10... Bf5 {[%clk
0:02:43]} 11. Be3 {[%clk 0:02:01.8]} 11... Bxe3 {[%clk 0:02:37.1]} 12. fxe3
{[%clk 0:02:02.7]} 12... Bg6 {[%clk 0:02:39]} 13. Rad1+ {[%clk 0:02:03.8]} 13...
Kc8 {[%clk 0:02:16.1]} 14. e6 {[%clk 0:01:31.2]} 14... fxe6 {[%clk 0:01:47.1]}
15. Rd4 {[%clk 0:01:32.2]} 15... a5 {[%clk 0:01:34.1]} 16. Nxe4 {[%clk
0:01:30.5]} 16... e5 {[%clk 0:01:35.3]} 17. Rc4 {[%clk 0:01:31.4]} 17... Ra6
{[%clk 0:01:28.5]} 18. Ng5 {[%clk 0:01:24.5]} 18... Rd8 {[%clk 0:01:09.7]} 19.
Nf3 {[%clk 0:01:23.4]} 19... Re6 {[%clk 0:01:07.4]} 20. h3 {[%clk 0:01:00.2]}
20... b6 {[%clk 0:01:08.3]} 21. a3 {[%clk 0:00:54]} 21... Kb7 {[%clk 0:01:08.8]}
22. b4 {[%clk 0:00:54.3]} 22... axb4 {[%clk 0:01:04.1]} 23. axb4 {[%clk
0:00:54.5]} 23... Rd5 {[%clk 0:00:52.2]} 24. e4 {[%clk 0:00:43.8]} 24... Rd8
{[%clk 0:00:47.4]} 25. Ra1 {[%clk 0:00:40.7]} 25... Rde8 {[%clk 0:00:42.1]} 26.
b5 {[%clk 0:00:40.1]} 26... Rd6 {[%clk 0:00:42.2]} 27. Kf2 {[%clk 0:00:37.5]}
27... Re7 {[%clk 0:00:37.9]} 28. Ke3 {[%clk 0:00:36.4]} 28... Be8 {[%clk
0:00:36.9]} 29. Rb4 {[%clk 0:00:36.4]} 29... c5 {[%clk 0:00:35.8]} 30. Rba4
{[%clk 0:00:35.1]} 30... Rdd7 {[%clk 0:00:24.1]} 31. Ra8 {[%clk 0:00:26.2]}
31... Kc7 {[%clk 0:00:21.6]} 32. R1a6 {[%clk 0:00:19.7]} 32... Re6 {[%clk
0:00:16.7]} 33. Nd2 {[%clk 0:00:16]} 33... Rde7 {[%clk 0:00:15.2]} 34. R6a7+
{[%clk 0:00:15.7]} 34... Kd6 {[%clk 0:00:15.8]} 35. Nc4# {[%clk 0:00:17.6]} 1-0

[Event "*** Titled Tuesday Blitz"]
[Site "Chess.com"]
[Date "2019.09.03"]
[Round "10"]
[White "Vasily_Papin"]
[Black "Jospem"]
[Result "0-1"]
[WhiteElo "2710"]
[BlackElo "2923"]
[TimeControl "180+2"]
[EndTime "17:19:28 PDT"]
[Termination "Jospem won by resignation"]

1. c4 {[%clk 0:02:58.6]} 1... c5 {[%clk 0:02:52.1]} 2. g3 {[%clk 0:02:59.3]}
2... Nc6 {[%clk 0:02:53.3]} 3. Bg2 {[%clk 0:03:00.7]} 3... g6 {[%clk 0:02:55.2]}
4. Nc3 {[%clk 0:03:01.6]} 4... Bg7 {[%clk 0:02:56.8]} 5. b3 {[%clk 0:03:03.1]}
5... d6 {[%clk 0:02:58.3]} 6. Bb2 {[%clk 0:03:03.9]} 6... e5 {[%clk 0:02:58.6]}
7. e3 {[%clk 0:03:02.9]} 7... Nge7 {[%clk 0:03:00.1]} 8. Nge2 {[%clk 0:03:03.5]}
8... O-O {[%clk 0:03:02]} 9. O-O {[%clk 0:03:03.5]} 9... Bf5 {[%clk 0:03:03.5]}
10. Nd5 {[%clk 0:02:56.5]} 10... Rb8 {[%clk 0:03:02.7]} 11. d4 {[%clk
0:02:55.6]} 11... exd4 {[%clk 0:02:50.4]} 12. exd4 {[%clk 0:02:56.5]} 12... Bg4
{[%clk 0:02:51.7]} 13. f3 {[%clk 0:02:54]} 13... Bf5 {[%clk 0:02:51]} 14. Qd2
{[%clk 0:02:51]} 14... Nxd5 {[%clk 0:02:37.5]} 15. cxd5 {[%clk 0:02:51.6]} 15...
Nb4 {[%clk 0:02:39]} 16. dxc5 {[%clk 0:02:39.8]} 16... Bxb2 {[%clk 0:02:38.6]}
17. Qxb2 {[%clk 0:02:39.5]} 17... Nd3 {[%clk 0:02:40.2]} 18. Qd2 {[%clk
0:02:35.2]} 18... Nxc5 {[%clk 0:02:41.4]} 19. Nd4 {[%clk 0:02:31.5]} 19... Bd3
{[%clk 0:02:40.1]} 20. Rfd1 {[%clk 0:02:28.9]} 20... Qf6 {[%clk 0:02:41]} 21.
Qf2 {[%clk 0:02:23.5]} 21... a5 {[%clk 0:02:39.4]} 22. Rd2 {[%clk 0:02:17.6]}
22... Rfe8 {[%clk 0:02:38.1]} 23. Rad1 {[%clk 0:02:17.9]} 23... Ba6 {[%clk
0:02:39.2]} 24. a3 {[%clk 0:02:13.6]} 24... Rbc8 {[%clk 0:02:34]} 25. b4 {[%clk
0:02:14.5]} 25... axb4 {[%clk 0:02:34.9]} 26. axb4 {[%clk 0:02:16.4]} 26... Nd3
{[%clk 0:02:30.7]} 27. Rxd3 {[%clk 0:02:17.2]} 27... Bxd3 {[%clk 0:02:32.6]} 28.
Rxd3 {[%clk 0:02:18.7]} 28... Rc1+ {[%clk 0:02:34.1]} 29. Bf1 {[%clk 0:02:19.4]}
29... Ree1 {[%clk 0:02:35.7]} 30. Nc2 {[%clk 0:01:37.8]} 30... Rxf1+ {[%clk
0:02:32.4]} 31. Qxf1 {[%clk 0:01:39.7]} 31... Rxf1+ {[%clk 0:02:34]} 32. Kxf1
{[%clk 0:01:41.1]} 32... Qb2 {[%clk 0:02:35.3]} 33. Rd2 {[%clk 0:01:40.6]} 33...
Qc1+ {[%clk 0:02:35.7]} 34. Ke2 {[%clk 0:01:41.4]} 34... Qg1 {[%clk 0:02:33.8]}
35. Kd3 {[%clk 0:01:38]} 35... Qf1+ {[%clk 0:02:34.7]} 36. Ke3 {[%clk
0:01:37.5]} 36... h5 {[%clk 0:02:35.2]} 37. Nd4 {[%clk 0:01:27.1]} 37... Kg7
{[%clk 0:02:36.7]} 38. Ne2 {[%clk 0:01:26.3]} 38... Qa1 {[%clk 0:02:35.4]} 39.
Rd4 {[%clk 0:01:22.1]} 39... Qf1 {[%clk 0:02:30.7]} 40. h4 {[%clk 0:01:21.2]}
40... f6 {[%clk 0:02:31]} 41. Re4 {[%clk 0:01:20.4]} 41... Kf7 {[%clk
0:02:31.5]} 42. Re6 {[%clk 0:01:15.1]} 42... Qa1 {[%clk 0:02:24.3]} 43. Re4
{[%clk 0:00:56.9]} 43... f5 {[%clk 0:02:20.3]} 44. Rd4 {[%clk 0:00:56.6]} 44...
Qf1 {[%clk 0:02:20.7]} 45. g4 {[%clk 0:00:49.3]} 45... hxg4 {[%clk 0:02:14.6]}
46. fxg4 {[%clk 0:00:51.2]} 46... Qh3+ {[%clk 0:02:15.7]} 47. Kd2 {[%clk
0:00:48.6]} 47... fxg4 {[%clk 0:02:17]} 48. Rf4+ {[%clk 0:00:41.4]} 48... Kg7
{[%clk 0:02:16.4]} 49. Rc4 {[%clk 0:00:38.3]} 49... g3 {[%clk 0:02:14.3]} 50.
Rc3 {[%clk 0:00:38.7]} 50... Qxh4 {[%clk 0:02:15.8]} 51. Rxg3 {[%clk 0:00:36.9]}
51... Qxb4+ {[%clk 0:02:17.3]} 52. Nc3 {[%clk 0:00:38.2]} 52... Qf4+ {[%clk
0:02:18.3]} 53. Re3 {[%clk 0:00:38.6]} 53... g5 {[%clk 0:02:19.9]} 54. Ne4
{[%clk 0:00:36.4]} 54... Qe5 {[%clk 0:02:19.4]} 55. Nc3 {[%clk 0:00:31.7]} 55...
Qd4+ {[%clk 0:02:20.5]} 56. Ke2 {[%clk 0:00:33.1]} 56... b5 {[%clk 0:02:21.2]}
57. Rd3 {[%clk 0:00:23.1]} 57... Qc4 {[%clk 0:02:21.9]} 58. Kd2 {[%clk
0:00:21.1]} 58... b4 {[%clk 0:02:14.1]} 59. Nd1 {[%clk 0:00:21.1]} 59... Qf4+
{[%clk 0:02:13.7]} 60. Ke2 {[%clk 0:00:19.9]} 60... Qe4+ {[%clk 0:02:10.9]} 61.
Kd2 {[%clk 0:00:20]} 61... g4 {[%clk 0:02:12]} 62. Nf2 {[%clk 0:00:21.4]} 62...
Qf4+ {[%clk 0:02:13.1]} 63. Ke2 {[%clk 0:00:22.9]} 63... g3 {[%clk 0:02:13.3]}
64. Nd1 {[%clk 0:00:20.9]} 64... g2 {[%clk 0:02:14.4]} 0-1

[Event "*** Titled Tuesday Blitz"]
[Site "Chess.com"]
[Date "2019.09.03"]
[Round "10"]
[White "Valuebet2000"]
[Black "ckgchess"]
[Result "1-0"]
[WhiteElo "2528"]
[BlackElo "2733"]
[TimeControl "180+2"]
[EndTime "17:19:36 PDT"]
[Termination "Valuebet2000 won by resignation"]

1. e4 {[%clk 0:03:01.9]} 1... c5 {[%clk 0:02:59.7]} 2. Nf3 {[%clk 0:02:59.6]}
2... Nc6 {[%clk 0:03:00.8]} 3. Bb5 {[%clk 0:03:00.6]} 3... d6 {[%clk 0:02:53.5]}
4. O-O {[%clk 0:02:57.3]} 4... Bd7 {[%clk 0:02:53.9]} 5. Re1 {[%clk 0:02:57.6]}
5... a6 {[%clk 0:02:54]} 6. Bf1 {[%clk 0:02:58.4]} 6... Nf6 {[%clk 0:02:55.3]}
7. c3 {[%clk 0:02:59.3]} 7... Bg4 {[%clk 0:02:56.6]} 8. h3 {[%clk 0:03:00.2]}
8... Bxf3 {[%clk 0:02:57.8]} 9. Qxf3 {[%clk 0:03:00.9]} 9... g6 {[%clk
0:02:49.2]} 10. Qd1 {[%clk 0:02:50.5]} 10... e5 {[%clk 0:02:35]} 11. d3 {[%clk
0:02:50.6]} 11... Bg7 {[%clk 0:02:35.7]} 12. Nd2 {[%clk 0:02:50.9]} 12... O-O
{[%clk 0:02:36.5]} 13. Nf3 {[%clk 0:02:51.7]} 13... d5 {[%clk 0:02:36.4]} 14.
exd5 {[%clk 0:02:49]} 14... Nxd5 {[%clk 0:02:38.3]} 15. a4 {[%clk 0:02:42.9]}
15... Re8 {[%clk 0:02:37.4]} 16. Qc2 {[%clk 0:02:42.9]} 16... h6 {[%clk
0:02:31.8]} 17. Bd2 {[%clk 0:02:35.6]} 17... Qd7 {[%clk 0:02:29.5]} 18. Rad1
{[%clk 0:02:36.5]} 18... Rad8 {[%clk 0:02:29.5]} 19. Bc1 {[%clk 0:02:37.7]}
19... Kh7 {[%clk 0:02:14.9]} 20. g3 {[%clk 0:02:28.1]} 20... b5 {[%clk
0:02:12.4]} 21. Bg2 {[%clk 0:02:27.2]} 21... Nb6 {[%clk 0:02:06.4]} 22. axb5
{[%clk 0:02:26.5]} 22... axb5 {[%clk 0:02:08.3]} 23. h4 {[%clk 0:02:25.5]} 23...
Qf5 {[%clk 0:02:00.2]} 24. Ng5+ {[%clk 0:02:03.2]} 24... hxg5 {[%clk 0:01:55.2]}
25. Bxc6 {[%clk 0:02:04.1]} 25... Re6 {[%clk 0:01:56.9]} 26. Be4 {[%clk
0:02:04.7]} 26... Qg4 {[%clk 0:01:53]} 27. hxg5 {[%clk 0:01:36.2]} 27... Red6
{[%clk 0:01:43.3]} 28. Be3 {[%clk 0:01:27.9]} 28... c4 {[%clk 0:01:34.7]} 29.
Bc5 {[%clk 0:01:15.7]} 29... cxd3 {[%clk 0:01:32.2]} 30. Rxd3 {[%clk 0:01:11.7]}
30... Rxd3 {[%clk 0:01:32.1]} 31. Bxd3 {[%clk 0:01:13.2]} 31... Nc4 {[%clk
0:01:31.5]} 32. b3 {[%clk 0:00:43.2]} 32... Nd2 {[%clk 0:01:30.8]} 33. Qxd2
{[%clk 0:00:32.1]} 33... e4 {[%clk 0:01:31.1]} 34. Qe2 {[%clk 0:00:24.5]} 34...
Qxg5 {[%clk 0:01:28.1]} 35. Qxe4 {[%clk 0:00:21.2]} 35... Qxc5 {[%clk
0:01:28.9]} 36. Qh4+ {[%clk 0:00:22]} 36... Bh6 {[%clk 0:01:22]} 37. Qxd8 {[%clk
0:00:22.7]} 37... Bd2 {[%clk 0:01:22.7]} 38. Re8 {[%clk 0:00:20.2]} 38... Bxc3
{[%clk 0:01:23.4]} 39. Qd7 {[%clk 0:00:19.4]} 39... Kg7 {[%clk 0:01:20.7]} 40.
Re7 {[%clk 0:00:17.6]} 40... Bd4 {[%clk 0:01:05.3]} 41. Rxf7+ {[%clk 0:00:18.2]}
41... Kh6 {[%clk 0:01:06.4]} 42. Rh7+ {[%clk 0:00:18.9]} 42... Kg5 {[%clk
0:01:08.1]} 43. Qe7+ {[%clk 0:00:17.6]} 1-0